[Event "USA Championship Women 2022"]
[Site "Saint Louis"]
[Date "2022.10.17"]
[Round "11.7"]
[White "Wu, Rochelle"]
[Black "Zatonskih, Anna"]
[Result "1/2-1/2"]
[ECO "D36"]
[WhiteElo "2317"]
[BlackElo "2368"]
[Annotator "TA"]
[PlyCount "88"]
[EventDate "2022.09.05"]
[EventType "tourn"]
[EventCountry "USA"]
[SourceTitle "playchess.com"]
[Source "ChessBase"]
[SourceQuality "1"]
[TimeControl "40/5400+30:1800+30"]

{[%evp 21,88,18,18,3,0,0,0,0,0,0,0,0,0,0,12,10,9,12,10,12,11,16,12,11,15,12,12,12,41,8,16,16,14,18,6,0,28,0,0,4,12,0,0,0,0,0,0,0,16,12,14,0,0,0,0,0,0,0,0,0,0,0,0,0,0,0,0,0,0]} 1. d4 {[%emt 0:00:03]} d5 {[%emt 0:00:05]} 2. c4 {[%emt 0:00:08]} e6 {[%emt 0:00:04]} 3. Nc3 {[%emt 0:00:07]} Nf6 {[%emt 0:00:06]} 4. cxd5 {[%emt 0:00:08]} exd5 {[%emt 0:00:06]} 5. Bg5 {[%emt 0:00:08]} c6 {[%emt 0:00:59]} 6. e3 {[%emt 0:00:35]} Be7 {[%emt 0:00:08]} 7. Qc2 {[%emt 0:01:35]} Nbd7 {[%emt 0:02:13]} 8. Nf3 {[%emt 0:00:21]} Nh5 {[%emt 0:10:46][%cal Bf6h5,Bh5g7,Bg7f5][%mdl 32]} 9. Bxe7 {[%emt 0:03:41]} Qxe7 {[%emt 0:00:11]} 10. Be2 {[%emt 0:06:54]} g6 {[%emt 0:08:19]} 11. O-O {[%emt 0:01:16]} O-O {[%emt 0:00:50]} 12. Rab1 {[%emt 0:01:36] D36: Queen's Gambit Declined: Exchange Variation: Main line (5 Bg5 c6 6 Qc2).} Nb6 {[%emt 0:07:23]} 13. Nd2 {[%emt 0:12:40]} Ng7 {[%emt 0:13:27]} 14. b4 {[%emt 0:12:50]} Bf5 {[%emt 0:01:18]} 15. Bd3 {[%emt 0:00:06]} a6 {[%emt 0:07:45]} 16. a4 {[%emt 0:02:44] [#]} Rac8 $146 {[%emt 0:08:07]} ({Predecessor:} 16... Rfc8 17. Bxf5 Nxf5 18. Qd3 Nd6 19. Rfe1 f5 20. h3 Ne4 21. a5 Nxd2 22. Qxd2 Nc4 {½-½ (22) Neininger,R-Meyer,F (2300) Germany 1994}) 17. Rfc1 {[%emt 0:03:38]} Bxd3 {[%emt 0:03:23]} 18. Qxd3 {[%emt 0:00:07]} Nf5 {[%emt 0:00:13]} 19. b5 {[%emt 0:01:30]} axb5 {[%emt 0:00:04]} 20. axb5 {[%emt 0:01:00]} c5 {[%emt 0:00:28]} 21. dxc5 {[%emt 0:00:27]} Qxc5 {[%emt 0:00:12]} 22. Ne2 {[%emt 0:01:51]} Qd6 {[%emt 0:08:01]} 23. Nd4 {[%emt 0:04:17]} Nxd4 {[%emt 0:00:29]} 24. Qxd4 {[%emt 0:00:09] [#] Hoping for Ne4.} Rfd8 {[%emt 0:00:51][%cal Ob6c4]} 25. h4 {[%emt 0:08:38][%cal Oh4h5]} h5 {[%emt 0:07:47]} 26. Rxc8 {[%emt 0:07:16]} Nxc8 {[%emt 0:00:01]} 27. Rd1 {[%emt 0:02:48]} Qb6 {[%emt 0:03:33]} 28. Qe5 {[%emt 0:05:54]} Qd6 {[%emt 0:03:56]} 29. Qg5 {[%emt 0:05:03][%cal Od2e4] [#] And now Ne4! would win.} (29. Qb2 $5 {[%cal Rd2e4]}) 29... Qe7 {[%emt 0:04:00] Against Ne4. The position is equal.} 30. Ne4 {[%emt 0:08:26]} Kg7 {[%emt 0:00:49] Inhibits Nf6. aiming for ...f6.} 31. Nc3 {[%emt 0:03:17]} Qxg5 {[%emt 0:01:36]} 32. hxg5 $11 {[%emt 0:00:06][%mdl 4096] Endgame KRN-KRN} Nb6 {[%emt 0:00:31]} 33. Rd4 {[%emt 0:02:56]} Rd7 {[%emt 0:02:17]} 34. Kf1 {[%emt 0:01:30]} f6 {[%emt 0:01:33]} 35. gxf6+ {[%emt 0:00:05]} Kxf6 {[%emt 0:00:01]} 36. Ke2 {[%emt 0:00:30]} Ke6 {[%emt 0:00:50]} 37. Kd3 {[%emt 0:01:06]} Rf7 {[%emt 0:02:14]} 38. f3 {[%emt 0:00:07]} Rc7 {[%emt 0:00:23]} 39. Ne2 {[%emt 0:02:27]} g5 {[%emt 0:04:05] Prevents Nf4+.} 40. Nc3 {[%emt 0:01:10]} Rc5 {[%emt 0:00:22]} 41. Rb4 {[%emt 0:06:50]} Rc8 {[%emt 0:07:37]} 42. Rd4 {[%emt 0:01:59]} Rc5 {[%emt 0:02:45]} 43. Rb4 {[%emt 0:00:05]} Rc8 {[%emt 0:00:09]} 44. Rd4 {[%emt 0:00:04]} Rc5 {[%emt 0:03:44] An interesting draw.  Weighted Error Value: White=0.05 (flawless) /Black=0.04 (flawless)} 1/2-1/2

[Event "USA Championship Women 2022"]
[Site "Saint Louis"]
[Date "2022.10.18"]
[Round "12.1"]
[White "Foisor, Sabina-Francesca"]
[Black "Lee, Alice"]
[Result "1/2-1/2"]
[ECO "A06"]
[WhiteElo "2203"]
[BlackElo "2263"]
[Annotator "TA"]
[PlyCount "146"]
[EventDate "2022.09.05"]
[EventType "tourn"]
[EventCountry "USA"]
[SourceTitle "playchess.com"]
[Source "ChessBase"]
[SourceQuality "1"]
[TimeControl "40/5400+30:1800+30"]

{[%evp 9,146,0,1,-6,0,-12,-2,-8,0,-13,-16,-11,-6,-15,0,-28,-6,-28,0,-24,-15,-32,-32,-40,-50,-74,-37,-56,-46,-51,-50,-49,-43,-45,-34,-50,-49,-49,-53,-70,-27,-71,-35,-128,-119,-118,-135,-131,-125,-108,-121,-124,-117,-113,-117,-139,-148,-141,-143,-130,-111,-125,-117,-118,-102,-91,0,0,0,0,6,10,33,31,36,33,33,34,40,43,41,35,53,54,57,1,57,0,7,0,3,1,1,1,7,8,10,9,81,80,89,0,0,0,0,0,0,0,0,0,0,0,0,0,0,0,0,0,0,0,0,0,0,0,0,0,0,0,0,0,0,0,0,0,0,0,0,0,0]} 1. Nf3 {[%emt 0:00:35]} d5 {[%emt 0:00:36]} 2. e3 {[%emt 0:00:18]} Nf6 {[%emt 0:00:07]} 3. b3 {[%emt 0:00:36]} Bf5 {[%emt 0:02:17]} 4. Bb2 {[%emt 0:00:31]} e6 {[%emt 0:00:16]} 5. Be2 {[%emt 0:04:33]} h6 {[%emt 0:00:45]} 6. d3 {[%emt 0:02:10] A06: Réti Opening: 1 Nf3 d5.} Nbd7 {[%emt 0:01:57]} 7. Nbd2 {[%emt 0:01:09]} c6 {[%emt 0:01:42]} 8. O-O {[%emt 0:02:58]} Be7 {[%emt 0:01:50]} 9. a3 {[%emt 0:09:45]} O-O {[%emt 0:04:52]} 10. Re1 {[%emt 0:01:35] [#]} Qc7 $146 {[%emt 0:05:01]} ({Predecessor:} 10... a5 11. Bf1 Nc5 12. h3 Bh7 13. Ne5 Ncd7 14. Nxd7 Nxd7 15. e4 Bf6 16. Bxf6 Qxf6 {0-1 (48) Sayapin,A (2032)-Gazizov,I (2193) Anapa 2007}) 11. Bf1 {[%emt 0:00:42]} Rad8 {[%emt 0:07:05]} 12. Qe2 {[%emt 0:07:01]} Rfe8 {[%emt 0:02:57]} 13. g3 {[%emt 0:05:15]} Bg4 {[%emt 0:06:40][%cal Bf5g4,Bg4h5,Bh5g6][%mdl 32]} 14. h3 {[%emt 0:03:46]} Bh5 {[%emt 0:00:57]} 15. Bg2 {[%emt 0:01:33]} e5 {[%emt 0:05:54] [#] Strongly threatening ...e4.} 16. g4 {[%emt 0:05:06]} Bg6 {[%emt 0:01:23]} 17. e4 {[%emt 0:02:16]} d4 {[%emt 0:01:17]} 18. Nf1 {[%emt 0:10:13]} Nf8 {[%emt 0:07:05][%cal Bd7f8,Bf8e6,Be6f4][%mdl 32]} 19. Bc1 {[%emt 0:03:59]} Ne6 {[%emt 0:01:57]} 20. Ng3 {[%emt 0:01:08]} Nd7 {[%emt 0:09:32]} 21. h4 {[%emt 0:04:09]} c5 {[%emt 0:06:14]} 22. Bh3 {[%emt 0:04:23]} Nf4 {[%emt 0:03:18]} 23. Qf1 {[%emt 0:00:06]} b5 {[%emt 0:02:31]} 24. Nf5 {[%emt 0:06:16]} Bf8 {[%emt 0:01:07]} 25. g5 {[%emt 0:03:21]} h5 {[%emt 0:03:50]} 26. Ng3 {[%emt 0:01:33]} (26. Bxf4 $15 exf4 27. a4) 26... Nxh3+ $17 {[%emt 0:01:16]} 27. Qxh3 {[%emt 0:00:05]} c4 {[%emt 0:00:18]} 28. Qf1 {[%emt 0:03:18]} cxb3 {[%emt 0:02:13]} 29. cxb3 {[%emt 0:00:01]} Qc3 {[%emt 0:00:28]} 30. Bd2 {[%emt 0:04:50]} Qxb3 {[%emt 0:00:11]} 31. Reb1 {[%emt 0:01:34]} Qa4 {[%emt 0:00:25]} 32. Ne1 {[%emt 0:00:05]} Nc5 {[%emt 0:02:02]} ({Inferior is} 32... Bxa3 33. Bb4 Qxb4 34. Rxb4 Bxb4 35. Rxa7 $11) 33. Rb4 {[%emt 0:02:34]} Qa6 {[%emt 0:01:17]} 34. Qe2 {[%emt 0:00:10]} Rb8 {[%emt 0:02:48]} 35. Nxh5 {[%emt 0:02:37]} Qe6 {[%emt 0:00:06] aiming for ...a5.} 36. Rab1 {[%emt 0:02:12]} Bxh5 {[%emt 0:02:17]} 37. Qxh5 {[%emt 0:00:02]} Qh3 {[%emt 0:02:37]} (37... a6 $17 {Threatens to win with ...Qh3.} 38. f3 Rbc8) 38. Rxb5 $11 {[%emt 0:02:32]} Rxb5 {[%emt 0:00:24]} 39. Rxb5 {[%emt 0:00:01]} Nxd3 {[%emt 0:02:01]} 40. Rb3 {[%emt 0:03:48] Chess con chili.} ({Reject} 40. Rb7 g6 41. Qf3 Qxf3 42. Nxf3 Nc5 43. Rxa7 Nxe4 $15) 40... g6 {[%emt 0:08:18]} (40... Nf4 $5 {[%cal Rh3b3]} 41. Rxh3 Nxh5 $11) 41. Qe2 {[%emt 0:15:50]} ({Avoid the trap} 41. Rxd3 $2 Qxd3 42. Nxd3 gxh5 $19) 41... Nc1 {[%emt 0:00:29][%cal Rc1e2] [#]} 42. Rxh3 {[%emt 0:00:24]} Nxe2+ {[%emt 0:00:03]} 43. Kf1 {[%emt 0:00:06]} Nf4 {[%emt 0:00:12]} 44. Rb3 {[%emt 0:00:11]} Ne6 {[%emt 0:01:30]} 45. Nd3 {[%emt 0:02:01]} Nc5 {[%emt 0:03:48]} 46. Nxc5 {[%emt 0:00:16]} Bxc5 $14 {[%emt 0:00:05][%mdl 4096] Endgame KRB-KRB} 47. Ke2 {[%emt 0:04:28]} ({White should play} 47. a4 $14) 47... Kg7 {[%emt 0:04:48]} ({Better is} 47... Bd6 $11) 48. Kf3 {[%emt 0:06:30]} ({White should try} 48. a4 $14) 48... Re6 {[%emt 0:04:43]} 49. Rb5 {[%emt 0:01:30]} Rc6 {[%emt 0:04:14]} 50. Bb4 {[%emt 0:02:12]} Bxb4 {[%emt 0:00:41]} 51. axb4 $11 {[%emt 0:00:01] KR-KR} Re6 $1 {[%emt 0:05:38]} 52. Ke2 {[%emt 0:00:33]} Re7 {[%emt 0:00:47]} 53. Rd5 {[%emt 0:01:52]} Rb7 {[%emt 0:03:42]} (53... a6 $11 {remains equal.}) 54. Rxe5 $16 {[%emt 0:01:17] Hoping for b5.} Rxb4 {[%emt 0:00:02]} 55. f4 {[%emt 0:00:15]} (55. Rd5 $16) 55... Rb3 $11 {[%emt 0:01:29] The position is equal.} 56. Kf2 {[%emt 0:00:50]} Re3 {[%emt 0:01:28]} 57. Re7 {[%emt 0:00:35]} Kf8 {[%emt 0:03:57]} 58. Rxa7 {[%emt 0:00:19]} Rxe4 {[%emt 0:00:04]} 59. Kf3 {[%emt 0:00:02]} Re3+ {[%emt 0:00:12]} 60. Kg4 {[%emt 0:00:58]} Re1 {[%emt 0:01:20]} 61. Rd7 {[%emt 0:00:19]} Rd1 {[%emt 0:01:43]} 62. Kf3 {[%emt 0:00:17]} d3 {[%emt 0:00:57]} 63. Ke3 {[%emt 0:00:24]} Re1+ {[%emt 0:00:08]} 64. Kf2 {[%emt 0:00:24]} Re2+ {[%emt 0:00:40]} 65. Kf3 {[%emt 0:00:10]} Rd2 {[%emt 0:00:27]} 66. Ke3 {[%emt 0:00:31][%csl LRd2,LRd3]} Rh2 {[%emt 0:00:06]} 67. Kxd3 {[%emt 0:00:32]} Rxh4 {[%emt 0:00:09]} 68. Ke4 {[%emt 0:00:13]} Rh1 {[%emt 0:00:08]} 69. Ra7 {[%emt 0:00:12]} Re1+ {[%emt 0:00:12]} 70. Kf3 {[%emt 0:00:04]} Rf1+ {[%emt 0:00:05]} 71. Ke4 {[%emt 0:00:05]} Re1+ {[%emt 0:00:04]} 72. Kf3 {[%emt 0:00:03]} Rf1+ {[%emt 0:00:04]} 73. Ke4 {[%emt 0:00:05]} Re1+ {[%emt 0:00:27] Weighted Error Value: White=0.13 (very precise) /Black=0.13 (very precise)} 1/2-1/2

[Event "USA Championship Women 2022"]
[Site "Saint Louis"]
[Date "2022.10.18"]
[Round "12.2"]
[White "Zatonskih, Anna"]
[Black "Paikidze, Nazi"]
[Result "1/2-1/2"]
[ECO "E32"]
[WhiteElo "2368"]
[BlackElo "2354"]
[Annotator "TA"]
[PlyCount "90"]
[EventDate "2022.09.05"]
[EventType "tourn"]
[EventCountry "USA"]
[SourceTitle "playchess.com"]
[Source "ChessBase"]
[SourceQuality "1"]
[TimeControl "40/5400+30:1800+30"]

{[%evp 17,90,-1,0,0,0,0,11,0,7,12,48,0,0,-17,-8,-8,0,0,30,19,30,13,12,8,26,4,68,66,68,64,52,56,116,101,116,126,126,121,128,95,145,41,33,41,41,0,10,0,0,0,121,0,0,0,0,0,0,0,0,0,0,0,0,0,0,0,0,0,0,0,0,0,0,0,0]} 1. d4 {[%emt 0:00:03]} Nf6 {[%emt 0:00:06]} 2. c4 {[%emt 0:01:24]} e6 {[%emt 0:00:35]} 3. Nc3 {[%emt 0:00:44]} Bb4 {[%emt 0:00:44]} 4. Qc2 {[%emt 0:00:44]} O-O {[%emt 0:02:33]} 5. a3 {[%emt 0:01:18]} Bxc3+ {[%emt 0:00:00]} 6. Qxc3 {[%emt 0:01:12]} d6 {[%emt 0:18:53]} 7. g3 {[%emt 0:06:31]} Re8 {[%emt 0:11:01]} 8. Bg2 {[%emt 0:00:04]} e5 {[%emt 0:04:40]} 9. Nf3 {[%emt 0:05:54]} Qe7 {[%emt 0:19:10]} 10. O-O {[%emt 0:12:01] E32: Nimzo-Indian: Classical (4 Qc2): 4...0-0.} a5 {[%emt 0:09:31]} 11. dxe5 {[%emt 0:37:46]} dxe5 {[%emt 0:00:00] [#]} 12. Bg5 $146 {[%emt 0:07:55]} ({Predecessor:} 12. b3 Nc6 13. Bb2 Bg4 14. h3 Bf5 15. Rad1 Qc5 16. Kh2 h6 17. Ne1 Qb6 18. Nc2 {1-0 (51) Ippolito,D (2477)-Arnold,M (2505) Lubbock 2011}) 12... Nc6 13. Nd2 {[%emt 0:04:48]} Bg4 14. Bxc6 (14. e3 $1 $14) 14... bxc6 $11 {[%emt 0:00:00]} 15. Qe3 {[%emt 0:04:30]} e4 16. f3 {[%emt 0:00:14] [#] Threatens to win with Bxf6.} exf3 (16... Bh3 {with more complications.} 17. Rfe1 Bf5 18. Qc3 a4) 17. Qxe7 {[%emt 0:01:02]} Rxe7 {[%emt 0:00:25]} (17... f2+ $5 18. Rxf2 Rxe7 $11) 18. exf3 {[%emt 0:01:06]} Bf5 {[%emt 0:03:28]} 19. Rfe1 {[%emt 0:03:06]} Rd7 {[%emt 0:01:57]} 20. Nb3 {[%emt 0:06:47]} Rd3 {[%emt 0:00:00]} 21. Re3 {[%emt 0:00:00]} h6 {[%emt 0:00:42]} (21... Nd7 $11) 22. Rxd3 $14 {[%emt 0:00:00]} Bxd3 {[%emt 0:00:21]} 23. Bxf6 {[%emt 0:00:00]} gxf6 {[%emt 0:00:31][%mdl 4096] Endgame KRB-KRN} 24. Rc1 {[%emt 0:00:00]} h5 {[%emt 0:08:32]} ({Better is} 24... a4 $14 25. Nc5 Bf5) 25. Rc3 {[%emt 0:00:00]} Bf5 {[%emt 0:02:34]} 26. Nd4 {[%emt 0:00:15][%csl LRc6,LRf5]} Bd7 {[%emt 0:01:51]} 27. c5 {[%emt 0:03:41]} Rd8 {[%emt 0:03:55]} 28. Rc2 {[%emt 0:05:11] White is more active.} Be6 {[%emt 0:00:23]} ({Black should play} 28... Kg7) 29. Rd2 {[%emt 0:02:40]} (29. Nxc6 $16 Rd1+ 30. Kf2) 29... a4 {[%emt 0:00:34]} 30. Kf2 {[%emt 0:02:06]} Rd5 {[%emt 0:04:26]} 31. f4 {[%emt 0:01:28]} Rxc5 {[%emt 0:00:26]} 32. Rc2 {[%emt 0:02:39]} Rxc2+ {[%emt 0:03:30]} 33. Nxc2 $11 {[%emt 0:00:34] KB-KN} c5 {[%emt 0:00:39] [#] Prevents Nb4.} (33... Kf8 $1 $11 {keeps the balance.}) 34. Ne3 {[%emt 0:00:44]} (34. Ne1 $1 $16) 34... f5 $1 {[%emt 0:00:35] The position is equal.} 35. Ke2 {[%emt 0:00:49]} Kf8 {[%emt 0:00:42]} 36. Kd3 {[%emt 0:00:00]} Ke7 {[%emt 0:00:51]} 37. Nd1 {[%emt 0:00:00]} Kd6 {[%emt 0:01:25]} 38. Nc3 {[%emt 0:00:00]} Bb3 {[%emt 0:00:43]} 39. Nb5+ {[%emt 0:00:00]} Kc6 {[%emt 0:00:29]} 40. Nc3 {[%emt 0:00:00]} Kd6 {[%emt 0:00:29]} 41. Ke3 {[%emt 0:07:18]} Bc2 {[%emt 0:04:22]} 42. Kd2 {[%emt 0:00:00]} Bb3 {[%emt 0:02:43]} 43. Ke3 Bc2 {[%emt 0:00:53]} 44. Kd2 {[%emt 0:00:00]} Bb3 {[%emt 0:00:07]} 45. Ke3 {[%emt 0:07:13]} Bc2 {[%emt 0:00:03] Weighted Error Value: White=0.15 (very precise) /Black=0.17 (very precise)} 1/2-1/2

[Event "USA Championship Women 2022"]
[Site "Saint Louis"]
[Date "2022.10.18"]
[Round "12.3"]
[White "Abrahamyan, Tatev"]
[Black "Wu, Rochelle"]
[Result "1-0"]
[ECO "B65"]
[WhiteElo "2308"]
[BlackElo "2317"]
[Annotator "TA"]
[PlyCount "75"]
[EventDate "2022.09.05"]
[EventType "tourn"]
[EventCountry "USA"]
[SourceTitle "playchess.com"]
[Source "ChessBase"]
[SourceQuality "1"]
[TimeControl "40/5400+30:1800+30"]

{[%evp 22,75,37,27,33,19,51,40,33,29,18,0,0,0,12,18,16,8,43,56,229,228,463,468,443,452,600,591,682,692,675,677,737,731,717,705,697,695,840,628,612,607,593,631,588,485,413,578,620,608,628,611,1003,980,786,658]} 1. e4 {[%emt 0:00:03]} c5 {[%emt 0:00:07]} 2. Nf3 {[%emt 0:00:04]} d6 {[%emt 0:00:06]} 3. d4 {[%emt 0:00:03]} cxd4 {[%emt 0:00:07]} 4. Nxd4 {[%emt 0:00:02]} Nf6 {[%emt 0:00:09]} 5. Nc3 {[%emt 0:00:03]} Nc6 {[%emt 0:00:08]} 6. Bg5 {[%emt 0:00:19]} e6 {[%emt 0:00:16]} 7. Qd3 {[%emt 0:00:25]} Be7 {[%emt 0:00:17]} 8. O-O-O {[%emt 0:01:34]} Nxd4 {[%emt 0:13:07]} 9. Qxd4 {[%emt 0:01:09]} O-O {[%emt 0:01:06]} 10. f4 {[%emt 0:04:07]} Qa5 {[%emt 0:04:26]} 11. Kb1 {[%emt 0:11:36]} h6 {[%emt 0:14:59]} 12. h4 {[%emt 0:06:55][%cal Od4e3]} Rd8 {[%emt 0:22:16] B65: Sicilian: Richter-Rauzer: 7...Be7 8 0-0-0 0-0 9 f4 Nxd4.} 13. Bd3 {[%emt 0:12:27][%cal Od4e3] Against b5} e5 {[%emt 0:08:04]} 14. Qf2 {[%emt 0:07:16] [#] Bxf6 is the strong threat.} exf4 {[%emt 0:09:24] White is slightly better.} (14... hxg5 $2 15. hxg5 exf4 16. Nd5 $18 (16. Qh4 Kf8 $16)) 15. Bxf4 {[%emt 0:08:22]} Be6 {[%emt 0:03:25] [#]} 16. Rhe1 $146 {[%emt 0:20:16][%cal Oc3d5]} ({Predecessor:} 16. Qe1 b6 17. a3 Rac8 18. Nd5 Bxd5 19. Bd2 Ba2+ 20. Kxa2 Qe5 21. Bc3 Qe6+ 22. Kb1 {½-½ (30) Poetz,F (2254)-Weiner,J (2128) ICCF email 2013}) 16... Ng4 {[%emt 0:02:17]} 17. Qg3 {[%emt 0:02:53]} Bf6 {[%emt 0:04:16]} 18. Nd5 {[%emt 0:03:17] Hoping for Be2.} Bxd5 {[%emt 0:00:05]} 19. exd5 {[%emt 0:00:13]} Qb4 {[%emt 0:03:07][%csl Gf6][%cal Rb4b2]} 20. Bc1 {[%emt 0:01:35] This bishop pair is nice.} Ne5 $2 {[%emt 0:02:55] This costs Black the game.} (20... Be5 $1 $14 21. Qf3 Nf6) 21. Re4 $18 {[%emt 0:00:58]} Qa5 {[%emt 0:03:06] [#]} (21... Qc5 22. Rf1 Nxd3) 22. Rf1 $1 {[%emt 0:02:14][%cal Bd1f1,Bf1f6,Bf6f2][%mdl 32]} Nxd3 {[%emt 0:02:45]} 23. cxd3 {[%emt 0:08:24] Rxf6 would kill now.} Rac8 {[%emt 0:03:36][%cal Oa5c7]} 24. Rxf6 $1 {[%emt 0:00:34] Intending Bxh6 and mate.} Rxc1+ {[%emt 0:00:40]} 25. Kxc1 {[%emt 0:00:03][%cal Bb1c1,Bc1c2,Bc2d2,Bd2e1,Be1e2,Be2e3,Be3e4,Be4f3][%mdl 32] Strongly threatening Rg4.} Qxa2 {[%emt 0:00:06]} 26. Rf2 {[%emt 0:03:36]} Qa1+ {[%emt 0:01:02]} 27. Kc2 {[%emt 0:00:36]} Rc8+ {[%emt 0:00:04]} 28. Rc4 {[%emt 0:00:24]} Qa4+ {[%emt 0:00:46]} 29. Kd2 {[%emt 0:00:41]} Qa5+ {[%emt 0:00:12]} 30. Rc3 {[%emt 0:01:24]} Qb4 {[%emt 0:00:35]} 31. Ke1 {[%emt 0:02:11]} Rxc3 {[%emt 0:01:15]} 32. bxc3 {[%emt 0:00:03]} Qxc3+ {[%emt 0:00:06]} 33. Ke2 {[%emt 0:00:35]} Qc2+ {[%emt 0:00:28]} 34. Ke3 {[%emt 0:01:07]} Qc5+ {[%emt 0:00:07] White is clearly winning.} 35. Ke4 {[%emt 0:00:18]} Qb4+ {[%emt 0:01:06]} 36. Kf3 {[%emt 0:00:36]} a5 {[%emt 0:01:25]} 37. Qf4 {[%emt 0:00:53]} Qb3 {[%emt 0:00:21]} 38. Qc4 {[%emt 0:00:18] Weighted Error Value: White=0.26 (precise) /Black=0.47} 1-0

[Event "USA Championship Women 2022"]
[Site "Saint Louis"]
[Date "2022.10.18"]
[Round "12.4"]
[White "Eswaran, Ashritha"]
[Black "Yan, Ruiyang"]
[Result "0-1"]
[ECO "D32"]
[WhiteElo "2365"]
[BlackElo "2220"]
[Annotator "TA"]
[PlyCount "116"]
[EventDate "2022.09.05"]
[EventType "tourn"]
[EventCountry "USA"]
[SourceTitle "playchess.com"]
[Source "ChessBase"]
[SourceQuality "1"]
[TimeControl "40/5400+30:1800+30"]

{[%evp 20,116,-31,-46,-35,-39,-25,-43,-34,-20,-24,-44,-1,-6,-12,-135,-125,-146,-124,-150,-111,-260,-258,-327,-211,-521,-480,-511,-504,-494,-485,-833,-298,-295,-296,-294,-293,-287,-288,-281,-261,-292,-281,-323,-257,-251,-252,-330,-380,-358,-364,-378,-383,-383,-378,-382,-363,-484,-482,-464,-464,-656,-647,-635,-554,-1043,-951,-858,-816,-29967,-29966,-5616,-5687,-29977,-29978,-29976,-29977,-29979,-29980,-29984,-29985,-29989,-29990,-29990,-29991,-29991,-29986,-29986,-29987,-29987,-29986,-29988,-29989,-29989,-29989,-29990,-29988,-29988,-29989]} 1. Nf3 {[%emt 0:00:09]} Nf6 {[%emt 0:00:15]} 2. c4 {[%emt 0:00:27]} e6 {[%emt 0:00:18]} 3. Nc3 {[%emt 0:00:18]} d5 {[%emt 0:00:07]} 4. e3 {[%emt 0:00:28]} c5 {[%emt 0:03:56]} 5. cxd5 {[%emt 0:00:30]} exd5 {[%emt 0:00:07]} 6. d4 {[%emt 0:00:14]} Nc6 {[%emt 0:00:36]} 7. Bb5 {[%emt 0:00:35]} a6 {[%emt 0:10:31]} 8. Bxc6+ {[%emt 0:02:51]} bxc6 {[%emt 0:00:08]} 9. dxc5 {[%emt 0:01:33]} Bxc5 {[%emt 0:04:49]} 10. h3 {[%emt 0:01:34]} O-O {[%emt 0:03:52]} 11. O-O {[%emt 0:00:09]} Bd6 {[%emt 0:01:38] D32: Tarrasch Defence: Sidelines and lines without g3.} 12. b3 {[%emt 0:01:19] [#]} c5 $146 {[%emt 0:10:51]} ({Predecessor:} 12... Bb8 13. Bb2 Qd6 14. Na4 Nd7 15. Rc1 Bb7 16. e4 dxe4 17. Qxd6 Bxd6 18. Rfd1 Bf4 19. Rc4 exf3 20. Rxf4 {1-0 (38) Vakhidov,J (2546)-Jamroz,K (2103) London 2015}) 13. Ba3 {[%emt 0:06:33]} (13. Nxd5 $2 Nxd5 14. e4 (14. Qxd5 $2 Bh2+ 15. Kxh2 Qxd5 $19) 14... Nc7 $19) 13... Bb7 {[%emt 0:03:43] Black is slightly better.} 14. Na4 {[%emt 0:03:45]} Qe7 {[%emt 0:05:21]} 15. Rc1 {[%emt 0:00:31][%cal Ra3c5]} Ne4 {[%emt 0:04:33]} 16. Nd2 {[%emt 0:09:45] Pair of Knights!} (16. Nb6 Rad8 $15) 16... d4 {[%emt 0:12:50]} ({Much less strong is} 16... Qe5 17. f4 Qe6 18. Nxe4 Qxe4 19. Qd2 $16) 17. Nc4 {[%emt 0:09:53]} (17. exd4 $11 cxd4 18. Bxd6 Qxd6 19. Nxe4 Bxe4 20. Nc5) 17... dxe3 $17 {[%emt 0:03:22] Black is more active.} 18. Nxe3 {[%emt 0:06:40]} Rad8 $1 {[%emt 0:07:38][%cal Oe4f2] Threatens to win with ...Nxf2!} ({Weaker is} 18... Qe5 19. f4 Qe6 20. Nc4 $11) 19. Qe2 {[%emt 0:08:26]} Qe5 {[%emt 0:03:34][%csl Gd6][%cal Re5h2] Against Nf5} 20. Ng4 {[%emt 0:01:13] [#] Against Qh2+. This costs White the game.} (20. f4 $17 {was forced.} Qf6 21. Qf3) 20... Qg5 $1 $19 {[%emt 0:04:27]} 21. Rc2 {[%emt 0:04:23]} f5 {[%emt 0:01:54]} 22. Nh2 {[%emt 0:05:19] [#]} (22. Nxc5 {was the crucial defense.} Nxc5 23. Bxc5 fxg4 24. Qxg4 Qxg4 25. hxg4) 22... Nd2 $1 {[%emt 0:05:03][%csl Gb7][%cal Rg5g2][%mdl 512]} 23. f4 {[%emt 0:01:58]} Bxf4 {[%emt 0:00:15]} 24. Rxf4 {[%emt 0:00:53]} Qxf4 {[%emt 0:00:09]} 25. Nxc5 {[%emt 0:01:51]} (25. Bc1 $142 Qd4+ 26. Qf2) 25... Qd4+ $2 {[%emt 0:02:37]} (25... Rfe8 26. Qf2 {[#]} Nf3+ $1 {[%mdl 512]} 27. gxf3 Rd1+ 28. Nf1 Ree1) 26. Qf2 {[%emt 0:03:45]} Qxf2+ {[%emt 0:00:17]} 27. Kxf2 {[%emt 0:00:03]} Ne4+ {[%emt 0:00:08]} 28. Nxe4 {[%emt 0:00:44]} Bxe4 {[%emt 0:00:07]} 29. Rb2 {[%emt 0:00:18]} Rfe8 {[%emt 0:00:16]} 30. Bc5 {[%emt 0:00:23]} Rd1 {[%emt 0:02:39]} 31. Nf1 {[%emt 0:02:32]} Bd3 {[%emt 0:02:00]} 32. Ne3 {[%emt 0:00:54]} Rc1 {[%emt 0:00:36]} 33. Bd6 {[%emt 0:01:37]} g5 {[%emt 0:03:54] aiming for ...f4.} 34. Rd2 {[%emt 0:06:48]} f4 {[%emt 0:00:43]} 35. Nd1 {[%emt 0:00:56]} Rc2 {[%emt 0:01:12]} 36. Rxc2 {[%emt 0:00:28]} Bxc2 {[%emt 0:00:04][%mdl 4096] Endgame KRB-KBN} 37. Nc3 {[%emt 0:00:05]} Rd8 {[%emt 0:00:26]} 38. Be7 {[%emt 0:02:42]} Rd2+ {[%emt 0:00:07]} 39. Kg1 {[%emt 0:00:04]} h6 {[%emt 0:00:14][%cal Bh7h6,Bh6h5,Bh5g4][%mdl 32]} 40. b4 {[%emt 0:00:47]} (40. Bf6 $142) 40... Kf7 {[%emt 0:02:01]} 41. Bc5 {[%emt 0:30:23]} h5 {[%emt 0:30:49]} 42. Kf1 {[%emt 0:02:23]} g4 {[%emt 0:01:21]} 43. hxg4 {[%emt 0:03:04]} hxg4 {[%emt 0:00:09] Hoping for ...Bd3+.} 44. a4 {[%emt 0:00:07]} Bd3+ {[%emt 0:01:20]} 45. Ke1 {[%emt 0:01:04]} Rxg2 {[%emt 0:00:19] ...Rc2 is the strong threat.} 46. b5 {[%emt 0:00:06]} axb5 {[%emt 0:00:54] Black mates.} 47. axb5 {[%emt 0:00:06]} Ke6 {[%emt 0:01:02]} 48. b6 {[%emt 0:02:10]} Ba6 {[%emt 0:00:09]} 49. Bd4 {[%emt 0:02:03]} g3 {[%emt 0:00:00]} 50. Nb1 {[%emt 0:00:00]} Kd5 {[%emt 0:00:00]} 51. b7 {[%emt 0:00:00]} Bxb7 {[%emt 0:00:00]} 52. Ba7 {[%emt 0:00:00]} f3 {[%emt 0:00:00]} 53. Nd2 {[%emt 0:00:00]} f2+ {[%emt 0:00:00]} 54. Kf1 {[%emt 0:00:00]} Rg1+ {[%emt 0:00:00]} 55. Ke2 {[%emt 0:00:00]} Ke6 {[%emt 0:00:00]} 56. Bd4 {[%emt 0:00:00]} Re1+ {[%emt 0:00:00]} 57. Kd3 {[%emt 0:00:00]} f1=Q+ {[%emt 0:00:00]} 58. Nxf1 {[%emt 0:00:00]} Rxf1 {[%emt 0:00:00] Weighted Error Value: White=0.84/Black=0.30} 0-1